Cogmind - Beta 14 X2 @@@ ROGUE MODE // 2024.07.30 @ 10:43:45 Player: Jazzer Result: Destroyed by Y-54 Guardian with Gatling Laser Performance ------------- Evolutions (4) 2000 Regions Visited (10) 2000 Robots Destroyed (161) 805 Value Destroyed (5016) 5016 Prototype IDs (30) 600 Alien Tech Used (0) 0 Bonus (1834) 1834 TOTAL SCORE: 12255 Bonus ------- High Alert Combat Kills 350 Follower Combat Kills 1428 Network Hubs Disabled 200 Registered with UFD 300 Built Enhanced Grunts 300 Friendly Fire -744 Cogmind --------- Core Integrity 0/850 Matter 258/300 Energy 100/100 System Corruption 56% Temperature Cool (18) Movement Core (50) Location -6/Hub_04(d) Parts ------- > --- POWER (1) -------- (None) > --- PROPULSION (5) --- (None) > --- UTILITY (6) ------ Spectral Analyzer Improved Target Analyzer > --- WEAPON (3) ------- (None) > --- INVENTORY (5) ---- High-capacity Storage Unit Deep Structural Scanner Seismic Detector Medium Reflective Plating Companion Sword Peak State ------------ > --- POWER ------------ Quantum Reactor > --- PROPULSION ------- Armored Treads Improved Medium Treads Improved Medium Treads Centrium Heavy Treads > --- UTILITY ---------- High-capacity Storage Unit Spectral Analyzer Improved Target Analyzer Armor Integrity Analyzer Centrium Medium Armor Plating Experimental Thermal Shield > --- WEAPON ----------- Advanced Variable Charge Gun Magnetic Acceleration Cannon Bore Cannon > --- INVENTORY -------- Cold Fusion Reactor Quantum Reactor Improved Treads Improved Cooling System Matter Compressor Deep Structural Scanner Seismic Detector Layered Medium Armor Plating Centrium Medium Armor Plating Medium Reflective Plating Authchip [Device] Long-range Tractor Beam Advanced Variable Charge Gun Gauss Rifle Advanced KE Penetrator Precision Grenade Launcher Companion Sword Vortex Trap Vortex Trap DRS Beacon [Rating: 104] Favorites ----------- Power Cooled Ion Engine Engine Cooled Ion Engine Power Core Fission Core Reactor Cold Fusion Reactor Propulsion Armored Treads Treads Armored Treads Wheel Wheel Hover Unit Aerolev Unit Utility High-capacity Storage Unit Device Seismic Detector Storage High-capacity Storage Unit Processor Spectral Analyzer Protection Improved Light Armor Plating Weapon Advanced Beam Cannon Energy Gun Pulse Rifle Energy Cannon Advanced Beam Cannon Ballistic Gun Improved Assault Rifle Ballistic Cannon Advanced Assault Cannon Launcher Precision Grenade Launcher Slashing Weapon Companion Sword Build | -11 -10 -9 -9 -9 -9 -6 -6 -6 -6 -6 ------- Run | Yrd Mat Mat Sto Rec Scr Fac Ext Cet Arc Hub Slots Evolved 8 | . . 2 . . . 6 . . . . Power . | . . . . . . . . . . . Propulsion 3 | . . 1 . . . 2 . . . . Utility 4 | . . 1 . . . 3 . . . . Weapon 1 | . . . . . . 1 . . . . Parts Attached 171 | 7 10 29 39 2 11 15 30 6 7 15 Power 12 | 1 . 2 1 . 1 1 2 1 2 1 Engine 6 | 1 . 2 1 . 1 . 1 . . . Core 1 | . . . . . . . 1 . . . Reactor 5 | . . . . . . 1 . 1 2 1 Propulsion 23 | 2 3 6 4 . . 2 4 1 . 1 Treads 21 | 2 3 4 4 . . 2 4 1 . 1 Leg . | . . . . . . . . . . . Wheel 1 | . . 1 . . . . . . . . Hover 1 | . . 1 . . . . . . . . Flight . | . . . . . . . . . . . Utility 71 | 2 5 8 18 1 4 5 12 2 4 10 Device 46 | 1 3 4 16 1 1 2 5 1 3 9 Storage 7 | 1 2 1 1 . 1 . . . 1 . Processor 5 | . . . . . 1 2 2 . . . Hackware . | . . . . . . . . . . . Protection 13 | . . 3 1 . 1 1 5 1 . 1 Artifact . | . . . . . . . . . . . Weapon 65 | 2 2 13 16 1 6 7 12 2 1 3 Energy Gun 11 | 1 . 4 1 . 3 . 1 1 . . Energy Cannon 14 | . 1 2 5 1 2 1 1 . . 1 Ballistic Gun 13 | 1 1 2 4 . 1 . 2 1 . 1 Ballistic Cannon 8 | . . 1 . . . 2 4 . 1 . Launcher 9 | . . 1 3 . . 2 3 . . . Special Weapon . | . . . . . . . . . . . Impact Weapon . | . . . . . . . . . . . Slashing Weapon 10 | . . 3 3 . . 2 1 . . 1 Piercing Weapon . | . . . . . . . . . . . Special Melee Weapon . | . . . . . . . . . . . Unidentified Prototypes 18 | . . 4 4 . . 3 . 4 2 1 Corrupted Parts 3 | . . . . . . . . 3 . . System Corruption 23 | . . . . . . . . 23 . . Parts Lost 24 | . 3 2 3 . . . 4 . . 12 Power 2 | . . . . . . . . . . 2 Propulsion 11 | . 2 . 2 . . . 2 . . 5 Utility 7 | . . 1 1 . . . 2 . . 3 Weapon 4 | . 1 1 . . . . . . . 2 Highest Loss Streak 8 | . 2 1 1 . . . 1 . . 8 To Critical Strikes . | . . . . . . . . . . . Average Slot Usage (%) 97 | . 99 98 99 100 97 99 98 94 93 83 Engine 7 | . 14 11 11 11 10 . . 1 . . Reactor 1 | . . . . . . 5 3 4 6 5 Treads 31 | . 27 32 32 33 33 33 31 27 26 21 Device 9 | . 14 14 11 11 7 13 5 6 6 5 Storage 9 | . 14 11 11 11 10 6 6 6 6 5 Processor 7 | . . . . . 5 20 19 20 20 18 Protection 6 | . . 6 10 11 8 . 6 6 6 6 Energy Gun 4 | . 4 10 4 . 2 1 1 4 6 2 Energy Cannon 6 | . 9 4 8 7 10 4 4 . . . Ballistic Gun 5 | . 14 4 6 11 7 . 3 6 . 2 Ballistic Cannon 2 | . . 1 . . . 5 7 7 12 10 Slashing Weapon 1 | . . . . 3 . 5 . . . . Naked Turns . | . . . . . . . . . . . Heaviest Build 95 | 14 31 63 66 59 62 74 81 88 91 95 Greatest Support 163 | 40 40 60 63 63 63 109 123 160 160 163 Greatest Overweight (x) 22 | 3 . 1 1 . . . . . . 22 Average Overweight (x) . | . . . . . . . . . . . Largest Inventory Capacity 20 | 8 15 20 20 20 20 20 20 20 20 20 Average Capacity 18 | 7 12 15 20 20 19 20 20 20 20 19 Most Carried 20 | 7 11 20 20 20 20 19 20 20 20 20 Average Carried 17 | 4 8 14 19 20 19 16 19 19 19 18 Final Capacity 20 | 8 15 20 20 20 20 20 20 20 20 5 Final Carried 20 | 5 11 20 20 20 20 18 20 20 20 5 Class Distribution -------------------- 74% | Mutant 11% | Scavenger-Gunner 6% | Gunner 3% | Commander-Gunner Dominant Class ---------------- Mutant | -10/Materials Mutant | -9/Materials Mutant | -9/Storage Mutant | -9/Recycling Mutant | -9/Scraptown Mutant | -6/Factory Gunner | -6/Extension Scavenger-Gunner | -6/Cetus Scavenger-Gunner | -6/Archives Scavenger-Gunner | -6/Hub_04(d) Resources | -11 -10 -9 -9 -9 -9 -6 -6 -6 -6 -6 ----------- Run | Yrd Mat Mat Sto Rec Scr Fac Ext Cet Arc Hub Matter Collected 4416 | 270 206 533 535 52 . 486 1188 84 400 662 Remotely 760 | . . . 180 . . . 162 . 237 181 Salvage Created 6073 | 105 638 1511 1488 42 . 543 1184 123 150 289 Parts 357 | 8 49 97 107 . . 21 44 7 9 15 Haulers Intercepted 9 | . 1 4 4 . . . . . . . Recyclers Shooed 10 | 1 . . 3 . . 3 2 . . 1 Parts Field Recycled . | . . . . . . . . . . . Retrieved Matter . | . . . . . . . . . . . Parts Self-Destructed . | . . . . . . . . . . . Prevented . | . . . . . . . . . . . Kills | -11 -10 -9 -9 -9 -9 -6 -6 -6 -6 -6 ------- Run | Yrd Mat Mat Sto Rec Scr Fac Ext Cet Arc Hub Combat Hostiles Destroyed 109 | . 15 33 29 1 . 3 21 2 1 4 Melee 1 | . . 1 . . . . . . . . Guns 40 | . 8 17 11 . . . 3 . . 1 Cannons 44 | . 7 10 11 . . . 10 2 1 3 AOE 23 | . . 5 7 . . 3 8 . . . Classes Destroyed 16 | 2 5 5 2 1 . . 1 . . . Worker 3 | . . 1 1 . . 1 . . . . Builder 7 | . . 1 2 . . 2 1 . . 1 Tunneler 5 | 3 . 1 . . . 1 . . . . Hauler 9 | . 1 4 4 . . . . . . . Recycler 8 | 1 . 1 . . . 3 3 . . . Mechanic 4 | . 1 1 1 . . 1 . . . . Operator 3 | . 2 . 1 . . . . . . . Watcher 12 | . . 5 2 . . . 2 1 . 2 Swarmer 16 | . 3 4 . . . 3 6 . . . Grunt 60 | . 12 18 22 . . . 6 . . 2 Brawler 2 | . . . 1 . . . . . . 1 Duelist 2 | . . 1 1 . . . . . . . Protector 1 | . . . 1 . . . . . . . Sentry 24 | . . 10 4 . . . 8 . 1 1 Hunter 1 | . . . . . . . 1 . . . Programmer 1 | . . . . 1 . . . . . . Cetus Guard 2 | . . . . . . . . 2 . . Enhanced Grunt 1 | . . . . . . . . . 1 . Savage 1 | . . . . . . . 1 . . . Best Kill Streak 9 | 4 4 8 9 1 . 5 7 2 1 1 Combat Bots Only 8 | . 4 7 8 1 . 3 6 2 1 1 Max Kills in Single Turn 5 | 1 1 4 5 1 . 5 3 1 1 1 Gunslinging 1 | . . . 1 . . . . . . . Exploded 4 | . . 3 4 . . 3 2 . . . Melee 1 | . . 1 . . . . . . . . Uniques/NPCs Destroyed . | . . . . . . . . . . . Combat | -11 -10 -9 -9 -9 -9 -6 -6 -6 -6 -6 -------- Run | Yrd Mat Mat Sto Rec Scr Fac Ext Cet Arc Hub Hostile Shots Fired 791 | . 92 167 78 2 . 27 205 . 5 215 Missed 220 | . 25 45 18 1 . 5 65 . . 61 Damage Taken 9038 | . 781 1598 813 40 . 342 1684 . 157 3623 Core 1297 | . 191 166 72 15 . 24 129 . . 700 Absorbed by Shields 83 | . . . . . . . 83 . . . Reduced by Siege Mode 30 | . . . . . . . . . . 30 Ignored by Resistances 99 | . . . . . . . . . 16 83 Regen/Repaired (Parts) 592 | . . . 261 . 331 . . . . . Core Remaining (%) 53 | 100 23 . . . 36 . . . . . Volleys Fired 426 | 18 52 113 69 4 . 20 95 10 10 35 Largest 3 | 1 2 2 2 2 . 1 3 3 3 3 Hottest 191 | 40 80 131 131 91 . 75 191 129 190 190 Shots Fired 832 | 18 102 223 125 8 . 20 195 30 23 88 Gun 388 | 18 76 158 60 4 . . 36 10 4 22 Cannon 421 | . 26 63 56 4 . 19 148 20 19 66 Launcher 23 | . . 2 9 . . 1 11 . . . Special . | . . . . . . . . . . . Kinetic 423 | . 50 73 30 4 . 7 133 30 19 77 Thermal 356 | 18 52 130 86 4 . . 51 . 4 11 Explosive 19 | . . 2 5 . . 1 11 . . . Electromagnetic 34 | . . 18 4 . . 12 . . . . Robot Hit Streak 23 | 11 16 23 15 6 . 7 20 13 2 6 Robot Miss Streak 5 | 3 3 3 3 2 . 3 3 2 5 5 Penetration Max 1 | . . . . . . . 1 . . . Secondary Targets 2 | . 1 . 1 . . . . . . . Max Gunslinging Chain 1 | . 1 . 1 . . . . . . . Shots Hit Robots 509 | 15 62 159 75 4 . 20 108 18 9 39 Core Hits 266 | 5 31 66 53 1 . 11 68 12 6 13 Critical Kills 7 | . . . . 1 . . 1 . 2 3 Critical Parts Destroyed 4 | . . . . . . . 2 . 1 1 Critical Strikes 26 | . . 3 1 1 . . 11 1 4 5 Burn 4 | . . 3 1 . . . . . . . Meltdown 1 | . . . . 1 . . . . . . Destroy 10 | . . . . . . . 3 . 3 4 Blast 11 | . . . . . . . 8 1 1 1 Melee Attacks 46 | . . 9 6 . . 15 12 . . 4 Impact . | . . . . . . . . . . . Slashing 46 | . . 9 6 . . 15 12 . . 4 Piercing . | . . . . . . . . . . . Sneak Attacks 5 | . . . . . . 5 . . . . Combat Hostiles . | . . . . . . . . . . . Follow-up Attacks . | . . . . . . . . . . . Damage Inflicted 13197 | 154 890 3340 1835 75 . 1231 3818 472 372 1010 Guns 4383 | 154 538 1882 783 25 . . 593 58 59 291 Cannons 5851 | . 316 862 648 46 . 462 2138 414 313 652 Explosions 2283 | . . 542 376 . . 317 1048 . . . Melee 451 | . . . . . . 451 . . . . Ramming 229 | . 36 54 28 4 . 1 39 . . 67 Kinetic 5377 | . 341 831 325 25 . 106 2197 472 313 767 Thermal 4301 | 154 513 1713 1106 46 . . 534 . 59 176 Explosive 2150 | . . 496 289 . . 317 1048 . . . Electromagnetic 689 | . . 246 87 . . 356 . . . . Impact . | . . . . . . . . . . . Slashing 451 | . . . . . . 451 . . . . Piercing . | . . . . . . . . . . . Highest Corruption 56 | . 2 . . . . . 5 28 28 56 Average Corruption 16 | . 1 . . . . . 5 21 28 32 Corruption Purged . | . . . . . . . . . . . Corruption Blocked . | . . . . . . . . . . . Effects 80 | . 9 . . . . . 5 15 7 44 Message Errors 19 | . 4 . . . . . 3 2 . 10 Matter Fused 10 | . . . . . . . . 2 . 8 Heat Flow Errors 12 | . 1 . . . . . 1 2 2 6 Energy Discharges 10 | . 1 . . . . . . 2 1 6 Parts Rejected 1 | . . . . . . . . . . 1 Data Loss (minor) 14 | . 2 . . . . . . 3 3 6 Data Loss (major) 2 | . . . . . . . . 1 . 1 Misfires 2 | . . . . . . . . 1 . 1 Alerts 2 | . . . . . . . . 2 . . Misdirections 2 | . . . . . . . . . . 2 Weapon Failures 6 | . 1 . . . . . 1 . 1 3 Overload Shots . | . . . . . . . . . . . Overflow Damage 285 | . . 117 14 . . 80 74 . . . Projectiles 101 | . . 7 14 . . 43 37 . . . Explosions 147 | . . 110 . . . . 37 . . . Melee 37 | . . . . . . 37 . . . . Knockbacks 15 | . 1 5 . . . . 7 . . 2 Impact 2 | . 1 . . . . . . . . 1 Kinetic 12 | . . 4 . . . . 7 . . 1 Secondary 1 | . . 1 . . . . . . . . Self-Inflicted Damage 65 | . . . 24 . . 1 39 . . 1 Shots 4 | . . . 1 . . 1 2 . . . Rammed 35 | . 7 12 4 1 . . 4 . . 7 Targets Rammed 38 | . 7 14 4 1 . 1 4 . . 7 Kicked . | . . . . . . . . . . . Crushed 3 | . . 2 . . . 1 . . . . Highest Temperature 376 | . 231 245 222 . . . 293 376 267 360 Average Temperature 71 | . 55 50 49 . . . 85 165 100 97 Received Heat Transfer 1962 | . 354 696 348 12 . . 222 . 18 312 Effects 3 | . . 1 . . . . . 1 . 1 Shutdowns 1 | . . . . . . . . 1 . . Interference 1 | . . 1 . . . . . . . . Matter Decay 1 | . . . . . . . . . . 1 Siege Activations 5 | . . . . . . . . . . 5 Total Turns 90 | . . . . . . . . . . 90 Longest Duration 29 | . . . . . . . . . . 29 Robots Corrupted 1 | . . . . . . 1 . . . . Combat Hostiles . | . . . . . . . . . . . Parts Fried 7 | . . 1 . . . 6 . . . . Impact Corruptions . | . . . . . . . . . . . Robots Melted 1 | . . . . 1 . . . . . . Combat Hostiles 1 | . . . . 1 . . . . . . Parts Melted 18 | . 1 12 1 3 . . 1 . . . Heat Transferred 8731 | 350 1116 3787 2146 74 . . 962 . 74 222 Parts Sabotaged . | . . . . . . . . . . . Parts Stolen . | . . . . . . . . . . . Parts Stripped . | . . . . . . . . . . . Power Chain Reactions 1 | . . 1 . . . . . . . . Alert | -11 -10 -9 -9 -9 -9 -6 -6 -6 -6 -6 ------- Run | Yrd Mat Mat Sto Rec Scr Fac Ext Cet Arc Hub Peak Influence 1012 | 20 358 807 708 288 . 88 291 203 280 1012 Initial 218 | . 13 63 218 183 . . 42 108 81 98 Average 274 | 6 161 413 386 192 . 26 153 191 210 666 Maximum Alert Level 3 | . 1 3 3 1 . . 1 1 1 3 Low Security (%) 44 | 100 78 21 5 61 . 100 63 16 48 6 Level 1 26 | . 21 11 41 38 . . 36 83 51 9 Level 2 22 | . . 61 49 . . . . . . 18 Level 3 6 | . . 5 4 . . . . . . 65 Level 4 . | . . . . . . . . . . . Level 5 . | . . . . . . . . . . . High Security . | . . . . . . . . . . . Max Security . | . . . . . . . . . . . Squads Dispatched 29 | . 5 3 7 . . 2 3 . . 9 Investigation 9 | . 3 2 1 . . 1 1 . . 1 Extermination 2 | . . . . . . 1 . . . 1 Reinforcement 11 | . 2 1 3 . . . 2 . . 3 Assault 4 | . . . 3 . . . . . . 1 Garrison 3 | . . . . . . . . . . 3 Intercept . | . . . . . . . . . . . Searches Triggered . | . . . . . . . . . . . Construction Impeded 5 | . . . 1 . . . 2 . . 2 Haulers Reinforced . | . . . . . . . . . . . Active Scanning Responses . | . . . . . . . . . . . Cargo Convoy Interrupts . | . . . . . . . . . . . Stealth | -11 -10 -9 -9 -9 -9 -6 -6 -6 -6 -6 --------- Run | Yrd Mat Mat Sto Rec Scr Fac Ext Cet Arc Hub Distress Signals 20 | . 3 6 4 . . . 1 . . 6 Communications Jammed . | . . . . . . . . . . . Distress Signals . | . . . . . . . . . . . Times Spotted 215 | . 28 51 36 3 . 10 31 4 6 46 Peak Tracking Total 12 | . 5 6 6 2 . 4 3 4 2 12 Tactical Retreats 9 | . 2 3 2 . . 1 . . . 1 Traps | -11 -10 -9 -9 -9 -9 -6 -6 -6 -6 -6 ------- Run | Yrd Mat Mat Sto Rec Scr Fac Ext Cet Arc Hub Traps Triggered 8 | . 5 2 . . . . . . . 1 Indirectly . | . . . . . . . . . . . Trap Hack Attempts . | . . . . . . . . . . . Triggered . | . . . . . . . . . . . Disarmed . | . . . . . . . . . . . Reprogrammed . | . . . . . . . . . . . Reused 1 | . . . . . . . . . . 1 Traps Extracted . | . . . . . . . . . . . Installed 2 | . . . . . . . . . . 2 Triggered 1 | . . . . . . . . . . 1 Most Traps Carried 2 | . . . . . 2 2 2 2 2 2 Machines | -11 -10 -9 -9 -9 -9 -6 -6 -6 -6 -6 ---------- Run | Yrd Mat Mat Sto Rec Scr Fac Ext Cet Arc Hub Machines Disabled 21 | . . 3 5 . . . 3 . 4 6 Max in Single Turn 2 | . . 1 1 . . . 1 . 2 1 Network Hub 1 | . . . . . . . . . . 1 Machines Repaired . | . . . . . . . . . . . Machines Dismantled . | . . . . . . . . . . . Machines Sabotaged . | . . . . . . . . . . . Overloaded Fab Kills . | . . . . . . . . . . . Hacking | -11 -10 -9 -9 -9 -9 -6 -6 -6 -6 -6 --------- Run | Yrd Mat Mat Sto Rec Scr Fac Ext Cet Arc Hub Machines Accessed 49 | . 5 7 10 10 4 4 5 1 . 3 Terminals 39 | . 5 7 9 6 . 3 5 1 . 3 Fabricators 1 | . . . . . . 1 . . . . Repair Stations 1 | . . . 1 . . . . . . . Recycling Units 4 | . . . . 4 . . . . . . Scanalyzers . | . . . . . . . . . . . Garrison Access . | . . . . . . . . . . . Total Hacks 131 | . 13 24 25 15 21 10 13 2 . 8 Successful 75 | . 3 17 14 10 21 4 4 . . 2 Failed 56 | . 10 7 11 5 . 6 9 2 . 6 Catastrophic 12 | . 3 2 1 1 . 1 2 . . 2 Database Lockouts . | . . . . . . . . . . . Manual 69 | . 10 15 10 15 . 8 2 1 . 8 Terminals 101 | . 13 24 22 11 . 8 13 2 . 8 Fabricators 2 | . . . . . . 2 . . . . Repair Stations 3 | . . . 3 . . . . . . . Recycling Units 4 | . . . . 4 . . . . . . Scanalyzers . | . . . . . . . . . . . Garrison Access . | . . . . . . . . . . . Terminal Hacks 44 | . . 8 7 4 21 1 3 . . . Record 19 | . . . . . 19 . . . . . Robot Analysis 5 | . . 1 1 3 . . . . . . Open Door 8 | . . . 3 . 1 1 3 . . . Level Access Points 1 | . . 1 . . . . . . . . Terminal Index 2 | . . 1 1 . . . . . . . Recycling Unit Index 1 | . . . . 1 . . . . . . Unreport Threat 4 | . . 2 2 . . . . . . . Locate Traps 1 | . . 1 . . . . . . . . Hauler Manifests 1 | . . 1 . . . . . . . . Zone Layout 1 | . . 1 . . . . . . . . Derelict Proto ID Bank 1 | . . . . . 1 . . . . . Fabricator Hacks . | . . . . . . . . . . . Repair Station Hacks 2 | . . . 2 . . . . . . . Scan Component 1 | . . . 1 . . . . . . . Repair 1 | . . . 1 . . . . . . . Recycling Unit Hacks . | . . . . . . . . . . . Scanalyzer . | . . . . . . . . . . . Garrison Access Hacks . | . . . . . . . . . . . Unauthorized Hacks 29 | . 3 9 5 6 . 3 1 . . 2 Terminals 24 | . 3 9 5 2 . 2 1 . . 2 Botnet 11 | . 2 2 2 2 . 1 1 . . 1 Skim 13 | . 1 7 3 . . 1 . . . 1 Fabricators 1 | . . . . . . 1 . . . . Haulers 1 | . . . . . . 1 . . . . Repair Stations . | . . . . . . . . . . . Recycling Units 4 | . . . . 4 . . . . . . Tunnel 4 | . . . . 4 . . . . . . Scanalyzers . | . . . . . . . . . . . Garrison Access . | . . . . . . . . . . . Data Cores Recovered . | . . . . . . . . . . . Used . | . . . . . . . . . . . Hacking Detections 36 | . 5 7 8 6 . 4 2 1 . 3 Full Trace Events 7 | . 2 1 1 . . 1 1 . . 1 Feedback Events 1 | . 1 . . . . . . . . . Corruption 1 | . 1 . . . . . . . . . Feedback Blocked . | . . . . . . . . . . . Robot Schematics Acquired . | . . . . . . . . . . . Robots Built . | . . . . . . . . . . . Authchips . | . . . . . . . . . . . Time . | . . . . . . . . . . . Total Robot Build Rating . | . . . . . . . . . . . Part Schematics Acquired . | . . . . . . . . . . . Parts Built . | . . . . . . . . . . . Authchips . | . . . . . . . . . . . Time . | . . . . . . . . . . . Total Part Build Rating . | . . . . . . . . . . . Parts Repaired 1 | . . . 1 . . . . . . . Time 38 | . . . 38 . . . . . . . Parts Recycled . | . . . . . . . . . . . Recycled Matter . | . . . . . . . . . . . Retrieved Matter . | . . . . . . . . . . . Retrieved Components . | . . . . . . . . . . . Parts Scanalyzed . | . . . . . . . . . . . Part Schematics Acquired . | . . . . . . . . . . . Parts Damaged . | . . . . . . . . . . . Bothacking | -11 -10 -9 -9 -9 -9 -6 -6 -6 -6 -6 ------------ Run | Yrd Mat Mat Sto Rec Scr Fac Ext Cet Arc Hub Used RIF Installer . | . . . . . . . . . . . Robots Hacked . | . . . . . . . . . . . Non-combat . | . . . . . . . . . . . Combat . | . . . . . . . . . . . Robot Hacks Applied . | . . . . . . . . . . . Relay Couplers Released . | . . . . . . . . . . . Fabnet Peak Effective % . | . . . . . . . . . . . Robots Rewired 11 | . . . . . . . 11 . . . Allies Hacked . | . . . . . . . . . . . Hacks Repelled . | . . . . . . . . . . . Allies | -11 -10 -9 -9 -9 -9 -6 -6 -6 -6 -6 -------- Run | Yrd Mat Mat Sto Rec Scr Fac Ext Cet Arc Hub Total Allies 22 | . . . 2 . . . 15 5 . . Largest Group 8 | . . . 2 2 1 1 8 6 6 3 Highest-Rated Group 639 | . . . 62 62 31 31 214 639 639 288 Highest-Rated Ally 159 | . . . 31 31 31 31 159 159 159 96 Total Orders 3 | . . . . . . . 2 . . 1 STAY 2 | . . . . . . . 1 . . 1 FOLLOW 1 | . . . . . . . 1 . . . Ally Attacks 205 | . . . . 7 . 9 99 10 22 58 Total Damage 5565 | . . . . 89 . 63 1954 341 862 2256 Kills 35 | . . . . 3 . 1 10 2 3 16 Allies Corrupted 2 | . . . . . . . . . . 2 Allies Melted . | . . . . . . . . . . . Intel | -11 -10 -9 -9 -9 -9 -6 -6 -6 -6 -6 ------- Run | Yrd Mat Mat Sto Rec Scr Fac Ext Cet Arc Hub Robot Analysis Total 5 | . . 1 1 3 . . . . . . Derelict Logs Recovered . | . . . . . . . . . . . Drone Launches . | . . . . . . . . . . . Drone Recoveries . | . . . . . . . . . . . Exploration | -11 -10 -9 -9 -9 -9 -6 -6 -6 -6 -6 ------------- Run | Yrd Mat Mat Sto Rec Scr Fac Ext Cet Arc Hub Turns Passed 12291 | 121 975 2258 1592 774 2222 954 2279 325 134 657 Spaces Moved 5801 | 44 466 934 532 457 1392 447 1081 147 52 249 Core 147 | 12 . . . . 121 . . . . 14 Treads 5654 | 32 466 934 532 457 1271 447 1081 147 52 235 Legs . | . . . . . . . . . . . Wheels . | . . . . . . . . . . . Hover . | . . . . . . . . . . . Flight . | . . . . . . . . . . . Fastest Speed 50 | 50 160 160 166 166 50 164 164 162 162 50 Average Speed 169 | 155 160 174 224 166 155 164 164 162 162 164 Slowest Speed 1150 | 200 160 250 250 166 166 164 165 164 162 1150 Overloaded Moves . | . . . . . . . . . . . Propulsion Burnouts . | . . . . . . . . . . . Robots Hopped . | . . . . . . . . . . . Cave-ins Triggered 1 | . . . . . . . 1 . . . Exploration Rate (%) 64 | 5 86 85 79 85 85 11 87 67 77 45 Regions Visited 10 Branch Regions 7 Pre-discovered Areas 10 | . . 1 . 4 5 . . . . . Known Exits Taken 3 | . . 1 . 1 1 . . . . . Unknown Exits Taken 7 | 1 1 . 1 . . 1 1 1 1 . Scrap Searched 3 | . . . . . 3 . . . . . Spaces Dug 44 | . . 9 6 . . 6 16 . . 7 Terrain Destroyed 256 | . . 49 23 . . 13 132 2 2 35 Melee 25 | . . 9 6 . . 6 . . . 4 Projectile 74 | . . 1 . . . 1 37 2 2 31 AOE 157 | . . 39 17 . . 6 95 . . . Terrain Rammed . | . . . . . . . . . . . Walls Destroyed . | . . . . . . . . . . . Machines Disabled . | . . . . . . . . . . . Actions | -11 -10 -9 -9 -9 -9 -6 -6 -6 -6 -6 --------- Run | Yrd Mat Mat Sto Rec Scr Fac Ext Cet Arc Hub Total 7430 | 77 591 1326 785 463 1448 624 1407 213 80 416 Wait 645 | . 43 184 112 . . 113 63 43 4 83 Move 5791 | 43 465 933 531 456 1391 446 1080 146 51 249 Hop . | . . . . . . . . . . . Pick Up 109 | 8 11 21 9 . 27 9 17 3 3 1 Fast Attach 33 | 5 1 8 5 . 7 . 5 1 1 . Attach 29 | 2 3 4 6 . 1 6 2 . . 5 Detach 12 | . . 4 3 . 1 . . . . 4 Swap 109 | . 6 17 28 2 3 9 23 5 6 10 Drop 103 | 1 3 19 12 . 18 5 20 5 5 15 Fire 426 | 18 52 113 69 4 . 20 95 10 10 35 Melee 46 | . . 9 6 . . 15 12 . . 4 Ram 2 | . . . . . . . . . . 2 Kick . | . . . . . . . . . . . Crush 37 | . 7 14 4 1 . 1 4 . . 6 Escape Stasis . | . . . . . . . . . . . Rewire 86 | . . . . . . . 86 . . . Trap 2 | . . . . . . . . . . 2 Miscellaneous . | . . . . . . . . . . . Route ------- -11/Scrapyard -10/Materials (discovered 4 exits: *Mat x3 / [*Min]) -9/Materials (discovered 6 exits: *Mat x3 / *Min / *Sto x2) -9/Storage (discovered 2 exits: Mat / *Rec) -9/Recycling (discovered 2 exits: [*Fac] / *Scr) -9/Scraptown (discovered 2 exits: *Fac x2) -6/Factory (discovered 5 exits: Fac x2 / Low x2 / *Ext) -6/Extension (discovered 2 exits: *Fac / *Cet) -6/Cetus -6/Archives (discovered 2 exits: *Hub x2) -6/Hub_04(d) (discovered 1 exit: *Fac) History --------- Turn | Location | Event 20 | -11/Scrapyard | Discovered new exit (range 15) 122 | -11/Scrapyard | Entered Materials 290 | -10/Materials | Discovered new exit (range 15) 304 | -10/Materials | Build established: Mutant 458 | -10/Materials | Discovered new exit (range 16) 465 | -10/Materials | Core integrity fell below 50% 607 | -10/Materials | Discovered new exit (range 16) 963 | -10/Materials | Discovered new exit (range 10) 1097 | -10/Materials | Entered another Materials area 1097 | -9/Materials | Evolved 2 slots: Propulsion x1, Utility x1 1702 | -9/Materials | Discovered new exit (range 14) 1713 | -9/Materials | Destroyed 7 combat bots 1744 | -9/Materials | Identified exit to Materials 2255 | -9/Materials | Discovered new exit (range 10) 2492 | -9/Materials | Discovered new exit (range 10) 2613 | -9/Materials | Learned Storage emergency access door positions 2666 | -9/Materials | Learned location of 1 exit from Recycling 2741 | -9/Materials | Learned Storage trap positions 2776 | -9/Materials | Learned 4 Recycling zone layouts 2799 | -9/Materials | Identified exit to Storage 2799 | -9/Materials | Identified exit to Mines 2870 | -9/Materials | Learned location of 3 exits from Materials 3355 | -9/Materials | Entered Storage 3357 | -9/Storage | Loaded intel: 13 trap records 4305 | -9/Storage | Core integrity fell below 50% 4397 | -9/Storage | Repaired Arm. Treads 4555 | -9/Storage | First assault squad dispatched 4658 | -9/Storage | Destroyed 8 combat bots 4872 | -9/Storage | Met a pair of Derelict thieves 4941 | -9/Storage | Used back door to open Recycling access 4941 | -9/Storage | Discovered new exit (range 5) 4947 | -9/Storage | Entered Recycling 4947 | -9/Recycling | Accompanied by 2 allies 4948 | -9/Recycling | Identified exit to Scraptown 5155 | -9/Recycling | Discovered new exit (range 15) 5681 | -9/Recycling | Scanned before Scraplab entrance 5706 | -9/Recycling | Entered Scraplab 5721 | -9/Recycling | Entered Scraptown 5721 | -9/Scraptown | Accompanied by 1 ally 5912 | -9/Scraptown | Visited UFD Registry 5912 | -9/Scraptown | Registered with UFD as "Kinetisplitter" 5936 | -9/Scraptown | Visited The Evicted 5961 | -9/Scraptown | Visited Fellowship of the Rings 6085 | -9/Scraptown | Discovered new exit (range 11) 6374 | -9/Scraptown | Visited IN-MT5's Study 6387 | -9/Scraptown | Visited CR-KLE's Repair Center 6457 | -9/Scraptown | Visited Cyclists 6477 | -9/Scraptown | Entered Cyclist Reading Room 6561 | -9/Scraptown | Visited Red Mages 6603 | -9/Scraptown | Visited Symbiants 6676 | -9/Scraptown | Visited Science Guys 6744 | -9/Scraptown | Visited LU-1G1's Boring Crew 6817 | -9/Scraptown | Visited Derelict Rescue Squad 6899 | -9/Scraptown | Visited Junk Repository 6972 | -9/Scraptown | Visited Research Penetration Think Tank 7007 | -9/Scraptown | Visited Science Testing Area 7025 | -9/Scraptown | Visited Cartography Club 7097 | -9/Scraptown | Found Deep Structural Scanner 7103 | -9/Scraptown | Learned location of Recycling (-9) 7103 | -9/Scraptown | Learned location of Warlord (-4) 7103 | -9/Scraptown | Learned location of Archives (-6) 7103 | -9/Scraptown | Learned location of Testing (-2) 7103 | -9/Scraptown | Learned 12 Materials zone layouts 7103 | -9/Scraptown | Learned 16 Factory zone layouts 7103 | -9/Scraptown | Learned 16 Research zone layouts 7103 | -9/Scraptown | Learned 4 Mines zone layouts 7103 | -9/Scraptown | Learned 8 Upper Caves zone layouts 7103 | -9/Scraptown | Learned 12 Proximity Caves zone layouts 7103 | -9/Scraptown | Learned Storage emergency access door positions 7103 | -9/Scraptown | Learned location of 2 exits from Upper Caves 7103 | -9/Scraptown | Learned location of 2 exits from Proximity Caves 7103 | -9/Scraptown | Identified exit to Factory 7214 | -9/Scraptown | Visited Sword Containment 7277 | -9/Scraptown | Visited Junk Repository 7352 | -9/Scraptown | Visited Infowarlord's Domain 7422 | -9/Scraptown | Found Spectral Analyzer 7740 | -9/Scraptown | CR-KLE repaired 6 parts 7943 | -9/Scraptown | Entered Factory 7943 | -6/Factory | Accompanied by 1 ally 7943 | -6/Factory | Evolved 6 slots: Propulsion x2, Utility x3, Weapon x1 7944 | -6/Factory | Identified exit to Lower Caves 7945 | -6/Factory | Identified exit to Factory 8360 | -6/Factory | Discovered new exit (range 10) 8511 | -6/Factory | Discovered exit to Factory (range 12) 8897 | -6/Factory | Entered Extension 9302 | -6/Extension | Spotted B-75 Beast 9768 | -6/Extension | Rescued a captive Derelict 9778 | -6/Extension | Rescued a captive Derelict 9923 | -6/Extension | Build established: Gunner 9997 | -6/Extension | Disrupted transfer network 10514 | -6/Extension | Rescued a captive Derelict 10560 | -6/Extension | Discovered exit to Factory (range 10) 10563 | -6/Extension | Discovered new exit (range 6) 10726 | -6/Extension | Build established: Commander-Gunner 10749 | -6/Extension | Spotted B-75 Beast 10768 | -6/Extension | Allies destroyed B-75 Beast 10797 | -6/Extension | Allies destroyed B-75 Beast 10826 | -6/Extension | Lost 6 allies 10918 | -6/Extension | Rescued A7 10953 | -6/Extension | Crushed by falling debris 11114 | -6/Extension | Build established: Scavenger-Gunner 11176 | -6/Extension | Entered Cetus 11176 | -6/Cetus | Accompanied by 1 ally (A7) 11181 | -6/Cetus | Acquired a Cetus Manufacturing Module code from A7 11198 | -6/Cetus | Spotted Cetus Guard 11198 | -6/Cetus | Spotted Cetus Guard 11198 | -6/Cetus | Spotted Cetus Guard 11198 | -6/Cetus | Spotted Cetus Guard 11209 | -6/Cetus | Allies destroyed Cetus Guard 11214 | -6/Cetus | Destroyed Cetus Guard 11220 | -6/Cetus | Destroyed Cetus Guard 11231 | -6/Cetus | Allies destroyed Cetus Guard 11256 | -6/Cetus | System corruption reached 10% 11335 | -6/Cetus | Started Cetus Manufacturing Module 11360 | -6/Cetus | Manufactured an Enhanced Grunt 11385 | -6/Cetus | Manufactured an Enhanced Grunt 11410 | -6/Cetus | Manufactured an Enhanced Grunt 11423 | -6/Cetus | Discovered new exit (range 23) 11435 | -6/Cetus | Manufactured an Enhanced Grunt 11460 | -6/Cetus | Manufactured an Enhanced Grunt 11501 | -6/Cetus | Entered Archives 11501 | -6/Archives | Accompanied by 6 allies (A7) 11535 | -6/Archives | Found Prototype Device 11535 | -6/Archives | Identified Exp. Thermal Shield 11591 | -6/Archives | Discovered new exit (range 23) 11607 | -6/Archives | Discovered new exit (range 24) 11635 | -6/Archives | Entered Hub_04(d) 11635 | -6/Hub_04(d) | Accompanied by 3 allies 11854 | -6/Hub_04(d) | Garrison activated, responded to threat 11985 | -6/Hub_04(d) | First assault squad dispatched 12028 | -6/Hub_04(d) | Network Hub disabled 12060 | -6/Hub_04(d) | Spotted Lightning 12124 | -6/Hub_04(d) | Spotted Lightning 12127 | -6/Hub_04(d) | Spotted Lightning 12128 | -6/Hub_04(d) | Spotted Lightning 12129 | -6/Hub_04(d) | System corruption reached 30% 12206 | -6/Hub_04(d) | Lost 8 parts (1p4n2u1w) 12270 | -6/Hub_04(d) | Core integrity fell below 50% 12287 | -6/Hub_04(d) | Core integrity fell below 20% 12291 | -6/Hub_04(d) | Discovered exit to Factory (range 9) 12292 | -6/Hub_04(d) | Destroyed by Y-54 Guardian with Gatling Laser Last Messages --------------- 12280_ Dropped Exp. Thermal Shield. 12280_ EMDS Slug penetrates Wall. 12281_ Dropped Matter Compressor. 12281_ Dropped Corrupted Quantum Reactor. 12282_ Dropped Neutron Cannon. 12282_ Dropped Magnetic Acceleration Cannon. 12283_ Dropped Prc. Grenade Launcher. 12283_ K-01 Serf collects debris. 12283_ Dropped Lyr. Medium Armor Plating. 12284_ Wall collapses. 12284_ Dropped Lrn. Tractor Beam. 12284_ Penetrated by EMDS Slug. 12286_ System corrupted: Matter fused (-5). 12286_ K-01 Serf collects debris. 12287_ EMDS Slug penetrates Lightning. 12289_ The unstable cave ceiling collapses. 12289_ Corrupted Carbon-fiber Leg crushed. 12289_ K-01 Serf collects debris. 12289_ Slammed into R-10 Processor. 12291_ EXIT=FOUND: FACTORY Map ----- +----------------------------------------------------+ | ??????????????????????????????? ?????????????????? | | ??????????????????????????????? ?????????????????? | | ??????????????????????????????? ?????????????????? | | ??????????????????????????????# ????????????????? | | ??????????????????????????????# ???????????????? | | ?????????????????????????????? ? ?????????????## | | ??????????????????????????????# ##+##+##????????# | | ??????????????????????????????# # #????????# | | ??????????????????????????????# # """"#????????# | | ??????????????????????????????# # """"#????????# | | ??????????????????????????????# # """"#????????# | | ??????????????????????????????# # """"########## | | ??????????????????????????????# #! + | | ???????????????????????#??????# ################## | | ???????????????????????# ?????# #??# %####???????? | | ???????????????????????# ?????# ### #### ######## | | ??????????????????????? ?????#]!##]#### """T"" | | ???????????????????????